fUSD/lending_fUSD_20250522
["ID","MTS","AMOUNT","RATE_DAILY","PERIOD"]
[361915972,1747889355510,-503.16973193,0.00011973,2]
[361915973,1747889355535,-501.62452173,0.00011973,2]
[361915974,1747889355560,-1442.151,0.0001199,2]
[361915975,1747889355583,-10638.38645604,0.0001199,2]
[361915976,1747889355627,-18881.4440989,0.00011991,2]
[361915977,1747889355654,-1990.3550921,0.00011991,2]
[361915978,1747889355682,-1089.5198117,0.00011991,2]
[361915979,1747889355708,-315.0797805,0.00011991,2]
[361915980,1747889355734,-1068.5554999,0.00011991,2]
[361915981,1747889355761,-711.59632888,0.00011991,2]
[361915982,1747889355788,-403.3021126,0.00011991,2]
[361915983,1747889355817,-25736.6833986,0.00011992,2]
[361915984,1747889355843,-2712.9884022,0.00011992,2]
[361915985,1747889355870,-1485.0890802,0.00011992,2]
[361915986,1747889355896,-429.4750186,0.00011992,2]
[361915987,1747889356697,-1460.263618,0.00011992,2]
[361915988,1747889356792,-393.7697932,0.00011992,2]
[361915989,1747889356818,-151.0,0.00011993,2]
[361915990,1747889356839,-151.0,0.00011993,2]
[361915991,1747889356860,-200.0,0.00011993,2]
[361915992,1747889356882,-668.65185757,0.00011993,2]
[361915993,1747889356904,-668.65185757,0.00011993,2]
[361915994,1747889356927,-186.45592511,0.00011999,2]
[361915995,1747889356951,-253.30158283,0.00011999,2]
[361915996,1747889356972,-210.49420463,0.00011999,2]
[361915997,1747889356999,-500.0,0.00011999,2]
[361915998,1747889357024,-500.0,0.00011999,2]
[361915999,1747889357049,-500.0,0.00011999,2]
[361916000,1747889357073,-500.0,0.00011999,2]
[361916001,1747889357097,-500.0,0.00011999,2]
[361916002,1747889357122,-500.0,0.00011999,2]
[361916003,1747889357145,-500.0,0.00011999,2]
[361916004,1747889357169,-500.0,0.00011999,2]
[361916005,1747889357192,-500.0,0.00011999,2]
[361916006,1747889357216,-500.0,0.00011999,2]
[361916007,1747889357242,-500.0,0.00011999,2]
[361916008,1747889357265,-500.0,0.00011999,2]
[361916009,1747889357290,-644.37986718,0.00011999,2]
[361916010,1747889357314,-500.0,0.00011999,2]
[361916011,1747889357338,-500.0,0.00011999,2]
[361916012,1747889357362,-208059.46358621,0.00012,2]
[361916013,1747889357386,-1589703.67842818,0.00012,2]
[361916014,1747889357408,-200.0,0.00012,2]
[361916016,1747889359573,611.82,0.00011104,2]
[361916017,1747889360074,227.48055742,0.000119,2]
[361916022,1747889380253,500.0,0.00011892,2]
[361916023,1747889391731,151.981303,0.0001176,2]
[361916024,1747889396431,-1188.0,0.00012006,2]
[361916025,1747889396458,-1188.0,0.00012006,2]
[361916026,1747889396478,-1188.0,0.00012006,2]
[361916027,1747889396499,-1188.0,0.00012006,2]
[361916028,1747889396521,-615.44309862,0.00012006,2]
[361916029,1747889396547,-328.0,0.00012092,2]
[361916030,1747889396568,-166.1,0.00012114,2]
[361916031,1747889396588,-200.0,0.0001212,2]
[361916032,1747889396608,-281.8388336,0.00012142,2]
[361916033,1747889396630,-210.23,0.00012187,2]
[361916034,1747889396651,-200.0,0.00012241,2]
[361916035,1747889396673,-150.0,0.00012241,2]
[361916036,1747889396693,-255.0,0.00012242,2]
[361916037,1747889396714,-264.13,0.00012242,2]
[361916038,1747889396735,-500.0,0.00012242,2]
[361916039,1747889396757,-150.0,0.00012242,2]
[361916040,1747889397108,-150.0,0.00012242,2]
[361916041,1747889397132,-162.95,0.00012246,2]
[361916042,1747889397156,-210.23,0.00012248,2]
[361916043,1747889397179,-288.4293573,0.00012268,2]
[361916044,1747889397200,-500.0,0.00012269,2]
[361916045,1747889397221,-150.0,0.00012269,2]
[361916046,1747889397242,-150.0,0.00012269,2]
[361916047,1747889397263,-571.81178589,0.00012297,2]
[361916048,1747889397284,-251.81170055,0.00012297,2]
[361916049,1747889397304,-171.05212101,0.00012297,2]
[361916050,1747889397327,-1180.28,0.00012318,2]
[361916051,1747889397349,-524.65,0.00012344,2]
[361916052,1747889397371,-175.21,0.00012483,2]
[361916053,1747889397392,-155.11,0.000125,2]
[361916054,1747889397414,-767.0,0.000125,2]
[361916055,1747889397436,-508.05217038,0.00012521,2]
[361916056,1747889397463,-693.3919763,0.00012541,2]
[361916057,1747889397485,-1000.0,0.00012566,2]
[361916058,1747889397507,-166.1,0.00012576,2]
[361916059,1747889397530,-250.0,0.00012658,2]
[361916060,1747889397552,-200.0,0.00012658,2]
[361916061,1747889397572,-250.0,0.00012658,2]
[361916062,1747889397595,-200.0,0.00012658,2]
[361916063,1747889397618,-305.26,0.00012701,2]
[361916064,1747889397641,-302.15,0.00012701,2]
[361916065,1747889397664,-303.56,0.00012701,2]
[361916066,1747889397686,-305.04,0.00012701,2]
[361916067,1747889397708,-302.68,0.00012817,2]
[361916068,1747889397729,-166.53,0.0001296,2]
[361916069,1747889397751,-305.35,0.00012992,2]
[361916070,1747889403869,500.0,0.0001253,2]
[361916071,1747889407937,-166.1,0.00013038,2]
[361916072,1747889407960,-250.0,0.00013044,2]
[361916073,1747889407982,-200.0,0.00013044,2]
[361916074,1747889408004,-175.21,0.00013051,2]
[361916075,1747889408026,-869.38050296,0.00013089,2]
[361916076,1747889408048,-250.0,0.00013158,2]
[361916077,1747889408071,-200.0,0.00013158,2]
[361916078,1747889408094,-215.0738,0.00013253,2]
[361916079,1747889408116,-636.23787525,0.00013362,2]
[361916080,1747889408139,-206.0,0.0001343,5]
[361916081,1747889408161,-300.0,0.00013496,2]
[361916082,1747889408182,-30000.0,0.00013497,2]
[361916083,1747889408204,-162.95,0.00013607,2]
[361916084,1747889408227,-1180.28,0.00013687,2]
[361916085,1747889408250,-150.0,0.00013698,2]
[361916086,1747889408271,-151.0,0.00013699,2]
[361916087,1747889408294,-153.89,0.00013699,2]
[361916088,1747889408316,-500.0,0.00013699,2]
[361916089,1747889408338,-500.0,0.00013699,2]
[361916090,1747889408360,-500.0,0.00013699,2]
[361916091,1747889408383,-500.0,0.00013699,2]
[361916092,1747889408405,-593.15125439,0.00013699,2]
[361916093,1747889408428,-500.0,0.00013699,2]
[361916094,1747889408449,-500.0,0.00013699,2]
[361916095,1747889408475,-500.0,0.00013699,2]
[361916096,1747889408497,-500.0,0.00013699,2]
[361916097,1747889408520,-500.0,0.00013699,2]
[361916098,1747889408543,-500.0,0.00013699,2]
[361916099,1747889408565,-500.0,0.00013699,2]
[361916100,1747889408587,-500.0,0.00013699,2]
[361916101,1747889408608,-500.0,0.00013699,2]
[361916102,1747889408630,-500.0,0.00013699,2]
[361916103,1747889408652,-500.0,0.00013699,2]
[361916104,1747889408674,-500.0,0.00013699,2]
[361916105,1747889408696,-500.0,0.00013699,2]
[361916106,1747889408718,-500.0,0.00013699,2]
[361916107,1747889408741,-500.0,0.00013699,2]
[361916108,1747889408763,-500.0,0.00013699,2]
[361916109,1747889408785,-500.0,0.00013699,2]
[361916110,1747889408809,-500.0,0.00013699,2]
[361916111,1747889408831,-500.0,0.00013699,2]
[361916112,1747889408854,-500.0,0.00013699,2]
[361916113,1747889408875,-500.0,0.00013699,2]
[361916114,1747889408897,-500.0,0.00013699,2]
[361916115,1747889408919,-500.0,0.00013699,2]
[361916116,1747889408941,-500.0,0.00013699,2]
[361916117,1747889408962,-500.0,0.00013699,2]
[361916118,1747889408984,-500.0,0.00013699,2]
[361916119,1747889409006,-644.84884073,0.00013699,2]
[361916120,1747889409028,-500.0,0.00013699,2]
[361916121,1747889409051,-500.0,0.00013699,2]
[361916122,1747889409075,-500.0,0.00013699,2]
[361916123,1747889409097,-250.37600397,0.00013701,2]
[361916124,1747889409122,-524.65,0.00013716,2]
[361916125,1747889409144,-500.0,0.00013725,2]
[361916126,1747889409166,-533.57530529,0.00013725,2]
[361916127,1747889409188,-795.15,0.00013804,2]
[361916128,1747889409210,-1000.0,0.00013962,2]
[361916129,1747889409231,-151.0,0.00014164,2]
[361916130,1747889409253,-151.0,0.00014165,2]
[361916131,1747889409276,-151.0,0.00014231,2]
[361916132,1747889409298,-164.0545939,0.00014247,2]
[361916133,1747889409319,-500.0,0.0001425,2]
[361916134,1747889409341,-500.0,0.0001425,2]
[361916135,1747889409363,-1000.0,0.00014273,2]
[361916136,1747889409385,-500.0,0.00014295,2]
[361916137,1747889409773,-500.0,0.00014306,2]
[361916138,1747889409797,-250.0,0.00014342,2]
[361916139,1747889409820,-200.0,0.00014342,2]
[361916140,1747889409842,-151.0,0.00014395,2]
[361916141,1747889409863,-151.0,0.00014395,2]
[361916142,1747889409885,-151.0,0.0001445,2]
[361916143,1747889409906,-151.0,0.00014577,2]
[361916144,1747889409928,-223.0315306,0.00014622,2]
[361916145,1747889409950,-151.0,0.00014651,2]
[361916146,1747889409971,-296.841,0.00014769,2]
[361916147,1747889409992,-275.548,0.00014769,2]
[361916148,1747889410014,-155.113,0.00014769,2]
[361916149,1747889410036,-1151.0,0.00014769,2]
[361916150,1747889410060,-300.0,0.00014793,2]
[361916151,1747889410081,-1000.0,0.00014798,2]
[361916152,1747889410103,-1000.0,0.00014798,2]
[361916153,1747889410125,-775.25677061,0.00014821,2]
[361916154,1747889410147,-1000.66651196,0.00014843,2]
[361916155,1747889410169,-1000.0,0.00014854,2]
[361916156,1747889410190,-3566.03623098,0.000149,2]
[361916157,1747889410211,-162.95,0.00014968,2]
[361916158,1747889410232,-250.0,0.00015,2]
[361916159,1747889410701,7809.19835564,0.00013469,2]
[361916164,1747889431855,-277.8417361,0.00015055,5]
[361916165,1747889432009,-123.73342642,0.00015055,5]
[361916166,1747889432020,-1180.28,0.00015055,2]
[361916167,1747889432030,-150.0,0.00015068,2]
[361916168,1747889432039,-880.0,0.00015069,2]
[361916169,1747889432049,-4049.0,0.00015069,2]
[361916170,1747889432060,-156.832,0.00015069,2]
[361916171,1747889432070,-338.19276668,0.00015087,2]
[361916172,1747889432096,-186.45723332,0.00015087,2]
[361916173,1747889432106,-151.0,0.00015111,2]
[361916174,1747889432115,-66.89637475,0.00015346,2]
[361916175,1747889432142,-420.54461945,0.00015346,2]
[361916176,1747889432154,-1012.5590058,0.00015346,2]
[361916177,1747889432164,-289.37653716,0.00015346,2]
[361916213,1747889434264,1000.0,0.00011891,2]
[361916216,1747889437774,-868.774932,0.00015346,2]
[361916217,1747889437799,-341.84853084,0.00015346,2]
[361916218,1747889437809,-1000.0,0.00015358,2]
[361916222,1747889438200,-1449.22246916,0.00015402,2]
[361916226,1747889438239,-50.77753084,0.00015402,2]
[361916228,1747889438248,-574.41885898,0.00015545,2]
[361916234,1747889438296,-37.40114102,0.00015545,2]
[361916236,1747889438306,-833.28551963,0.00015616,2]
[361916240,1747889438334,-501.3690392,0.00015616,2]
[361916244,1747889438367,-1778.37236293,0.00015616,2]
[361916246,1747889438379,-14483.36307824,0.00015616,2]
[361916248,1747889438389,-822.4467176,0.00015894,2]
[361916250,1747889438398,-985.39314918,0.00015894,2]
[361916252,1747889438408,-2000.0,0.0001595,2]
[361916254,1747889438418,-231.28369723,0.00015991,2]
[361916256,1747889438428,-795.15,0.00016068,2]
[361916258,1747889438437,-206.0,0.00016169,8]
[361916260,1747889438447,-162.95,0.00016328,2]
[361916262,1747889438456,-1180.28,0.00016424,2]
[361916264,1747889438466,-161.60930007,0.00016438,2]
[361916266,1747889438477,-150.0,0.00016438,2]
[361916268,1747889438487,-524.65,0.00016459,2]
[361916270,1747889438497,-2500.0,0.00016498,2]
[361916272,1747889438506,-179.15,0.00016712,2]
[361916273,1747889438516,-1000.0,0.00016754,2]
[361916275,1747889438525,-250.81260565,0.00016982,2]
[361916277,1747889438535,-300.0,0.00017,2]
[361916279,1747889438545,-2665.78879602,0.00017046,2]
[361916281,1747889438554,-388.25036127,0.0001736,2]
[361916283,1747889438564,-11763.31629474,0.00017728,2]
[361916285,1747889438578,-8355.461751,0.00017728,2]
[361916288,1747889438589,-9881.21195426,0.00017728,2]
[361916290,1747889438599,-236.0,0.000178,5]
[361916292,1747889438608,-200.494572,0.00018,2]
[361916294,1747889438618,-760.899,0.00018069,2]
[361916295,1747889438627,-3593.254,0.00018069,2]
[361916297,1747889438637,-795.15,0.00018331,2]
[361916299,1747889438646,-213.25515513,0.000189,2]
[361916302,1747889438656,-213.25515506,0.000189,2]
[361916303,1747889438665,-206.0,0.00018909,11]
[361916305,1747889438675,-500.0,0.00018973,2]
[361916307,1747889438684,-543.8702568,0.00018974,2]
[361916309,1747889438694,-1851.9717361,0.00018974,2]
[361916311,1747889438704,-17013.22899465,0.00018987,2]
[361916313,1747889438717,-1153.45963817,0.00018987,2]
[361916319,1747889438764,-8774.55,0.00018987,2]
[361916432,1747889440043,-151.0,0.00015691,2]
[361916434,1747889440053,-762.76378646,0.00018987,2]
[361916461,1747889440316,-919.39818052,0.00015069,2]
[361916462,1747889440329,-231.60181948,0.00015069,2]
[361916464,1747889440339,-493.08409317,0.00018987,2]
[361916466,1747889440351,-1897.54,0.00018987,2]
[361916468,1747889440363,-2497.29618585,0.00018987,2]
[361916470,1747889440373,-1880.6583488,0.00018987,2]
[361916472,1747889440383,-384.2374738,0.00018987,2]
[361916474,1747889440392,-986.25759284,0.00019,2]
[361916476,1747889440404,-764.745945,0.00019,2]
[361916487,1747889440520,-925.30322435,0.00019,2]
[361916490,1747889440532,-3212.52871365,0.00019,2]
[361916492,1747889440544,-1116.6,0.00019,2]
[361916584,1747889441450,500.0,0.00011892,2]
[361916800,1747889443711,576.5487,0.00011892,2]
[361916870,1747889444389,-462.7418369,0.00018069,2]
[361917002,1747889445771,-688.2581631,0.00018069,2]
[361917004,1747889445780,-427.88519153,0.00019,2]
[361917006,1747889445793,-920.65937152,0.00019,2]
[361917011,1747889445837,-407.26464073,0.00019,2]
[361917018,1747889445889,-6561.53498233,0.00019,2]
[361917020,1747889445902,-619.76020313,0.00019,2]
[361917022,1747889445914,-47352.93125225,0.00019,2]
[361917024,1747889445925,-688.08525818,0.00019,2]
[361917026,1747889445937,-1873.14887,0.00019,2]
[361917051,1747889446163,-286.72,0.00019,2]
[361917055,1747889446188,-2487.79861121,0.00019,2]
[361917057,1747889446200,-897.40698998,0.00019,2]
[361917059,1747889446212,-7059.18642394,0.00019,2]
[361917062,1747889446223,-36155.19810701,0.00019,2]
[361917064,1747889446232,-350.0,0.00019,2]
[361917066,1747889446242,-213.25515506,0.00019173,2]
[361917068,1747889446253,-1000.0,0.00019521,2]
[361917070,1747889446262,-320.86,0.000197,2]
[361917072,1747889446272,-152.731412,0.00019838,2]
[361917074,1747889446281,-151.0,0.00019838,2]
[361917076,1747889446291,-160.34634637,0.0002,17]
[361917078,1747889446301,-4999.99999801,0.0002,2]
[361917080,1747889446311,-523.60443,0.0002,2]
[361917082,1747889446320,-523.60444,0.0002,2]
[361917084,1747889446331,-523.60444,0.0002,2]
[361917086,1747889446341,-523.60444,0.0002,2]
[361917088,1747889446350,-523.60443,0.0002,2]
[361917090,1747889446359,-523.60444,0.0002,2]
[361917092,1747889446368,-200.0,0.0002,2]
[361917094,1747889446378,-1060.55237202,0.00020068,2]
[361917096,1747889446389,-1624.59,0.00020548,2]
[361917098,1747889446398,-153.89,0.00020548,2]
[361917100,1747889446408,-795.15,0.00020595,2]
[361917102,1747889446418,-500.0,0.00020769,2]
[361917104,1747889446427,-500.0,0.00020769,2]
[361917106,1747889446436,-500.0,0.00020769,2]
[361917108,1747889446445,-500.0,0.00020769,2]
[361917110,1747889446455,-500.0,0.00020769,2]
[361917112,1747889446464,-500.0,0.00020769,2]
[361917114,1747889446474,-500.0,0.00020769,2]
[361917116,1747889446483,-500.0,0.00020769,2]
[361917118,1747889446492,-500.0,0.00020769,2]
[361917120,1747889446501,-500.0,0.00020769,2]
[361917122,1747889446510,-500.0,0.00020769,2]
[361917124,1747889446519,-500.0,0.00020769,2]
[361917126,1747889446528,-500.0,0.00020769,2]
[361917128,1747889446538,-500.0,0.00020769,2]
[361917130,1747889446547,-500.0,0.00020769,2]
[361917132,1747889446558,-808.0,0.00020769,2]
[361917134,1747889446567,-400.0,0.00021,2]
[361917136,1747889446576,-1151.0,0.00021069,2]
[361917137,1747889446590,-165.04,0.0002137,2]
[361917140,1747889446599,-805.14,0.00021507,2]
[361917141,1747889446608,-805.46,0.00021507,2]
[361917144,1747889446618,-466.25,0.00021507,2]
[361917146,1747889446628,-206.0,0.00021648,14]
[361917148,1747889446638,-213.25515506,0.00021809,6]
[361917150,1747889446648,-250.81260565,0.00022063,2]
[361917152,1747889446657,-152.02307151,0.000224,2]
[361917153,1747889446666,-320.86,0.000225,7]
[361917155,1747889446675,-795.15,0.00022859,2]
[361917158,1747889446685,-202.57744699,0.00023,2]
[361917159,1747889446695,-198.6,0.00023836,2]
[361917161,1747889446704,-1151.0,0.00024069,2]
[361917163,1747889446714,-206.0,0.00024388,18]
[361917165,1747889446723,-213.25515506,0.00024445,11]
[361917167,1747889446733,-162.8,0.00024658,2]
[361917169,1747889446742,-340.2,0.00024658,2]
[361917171,1747889446752,-302.54,0.00024658,2]
[361917173,1747889446761,-335.37221376,0.00024799,2]
[361917175,1747889446771,-500.0,0.00024799,2]
[361917177,1747889446781,-500.0,0.00024799,2]
[361917179,1747889446791,-500.0,0.00024799,2]
[361917181,1747889446800,-500.0,0.00024799,2]
[361917183,1747889446809,-349.3755408,0.00024799,2]
[361917185,1747889446819,-164.48488407,0.00024799,2]
[361917187,1747889446829,-16893.86,0.000248,7]
[361917189,1747889446838,-320.86,0.000249,7]
[361917191,1747889446848,-1100.0,0.000249,9]
[361917193,1747889446858,-15243.95568418,0.000249,3]
[361917195,1747889446870,-2788.0297121,0.000249,3]
[361917635,1747889463547,500.0,0.0001253,2]
[361917636,1747889464005,546.8794716,0.0001253,2]
[361917637,1747889464055,164.40887844,0.0001253,2]
[361917638,1747889503453,500.0,0.00011892,2]
[361917639,1747889532367,6178.2705,0.000119,2]
[361917640,1747889542770,250.0,0.00015,2]
[361917641,1747889551083,1000.0,0.00011891,2]
[361917642,1747889565274,500.0,0.00011892,2]
[361917644,1747889591260,204.0,0.0001069,2]
[361917645,1747889595445,2021.378357,0.00026558,120]
[361917646,1747889627145,318.6912,0.00011892,2]
[361917647,1747889732831,1927.60421615,0.00015,2]
[361917649,1747889916913,153.7,0.00013699,2]
[361917650,1747889918279,4381.0,0.00027397,120]
[361917763,1747890575427,150.0,0.0002,120]
[361917765,1747890631980,-207.4,0.00016039,2]
[361917767,1747890631990,-271.71857813,0.00016949,2]
[361917769,1747890632036,-118.09350979,0.00016949,2]
[361917770,1747890632046,-302.63,0.00017049,2]
[361917771,1747890632056,-301.82,0.00017049,2]
[361917772,1747890632067,-250.0,0.00017427,2]
[361917773,1747890632078,-200.0,0.00017427,2]
[361917774,1747890632088,-250.0,0.00018484,2]
[361917775,1747890632098,-123.19464415,0.00018484,2]
[361917776,1747890632203,-76.80535585,0.00018484,2]
[361917777,1747890632214,-250.0,0.00018657,2]
[361917778,1747890632223,-200.0,0.00018657,2]
[361917779,1747890632233,-198.17100417,0.00019113,2]
[361917780,1747890632246,-303.16557373,0.00019113,2]
[361917781,1747890632255,-151.0,0.00020003,2]
[361917782,1747890632265,-151.0,0.00020033,2]
[361917783,1747890632275,-151.0,0.00020068,2]
[361917784,1747890632285,-151.0,0.00020084,2]
[361917785,1747890632294,-62.36921508,0.00020731,2]
[361917786,1747890632313,-237.63078492,0.00020731,2]
[361917788,1747890632324,-282.23760649,0.00020731,2]
[361917791,1747890632351,-917.76239351,0.00020731,2]
[361917793,1747890632361,-4481.38,0.00020733,2]
[361917794,1747890632371,-7346.63,0.00020733,2]
[361917795,1747890632381,-389.8120879,0.00020787,2]
[361917796,1747890632392,-212.21483964,0.000209,4]
[361917838,1747890632853,-153.7,0.00020951,2]
[361917842,1747890632893,-629.41,0.00022186,2]
[361917844,1747890632903,-1600.0,0.00022664,2]
[361917846,1747890632914,-212.21483956,0.0002365,9]
[361917848,1747890632926,-2621.21914096,0.00023675,2]
[361917857,1747890638222,-300.0,0.00020732,2]
[361917858,1747890638235,-129.78085904,0.00023675,2]
[361917859,1747890638246,-207.0,0.00024127,2]
[361917860,1747890638255,-1000.0,0.00024169,2]
[361917861,1747890638266,-437.0,0.00024169,2]
[361917862,1747890638276,-175.348349,0.00024303,2]
[361917863,1747890638286,-205.69,0.00024313,2]
[361917864,1747890638296,-676.73,0.00024313,2]
[361917866,1747890638306,-1122.11967163,0.00024402,2]
[361917867,1747890638315,-1075.44559014,0.00024402,2]
[361917870,1747890638326,-250.0,0.00024411,2]
[361917872,1747890638335,-629.41,0.0002445,2]
[361917873,1747890638345,-150.0,0.00024477,7]
[361917876,1747890638355,-155.63,0.00024493,2]
[361917877,1747890638365,-150.0,0.00024493,2]
[361917879,1747890638375,-177.285,0.00024601,7]
[361917882,1747890638385,-200.0,0.00024601,2]
[361917884,1747890638395,-1398.423,0.00024601,7]
[361917886,1747890638404,-389.8120879,0.00024625,2]
[361917887,1747890638414,-200.0,0.00024627,2]
[361917889,1747890638423,-287.21,0.0002466,2]
[361917891,1747890638433,-23900.0,0.00024699,2]
[361917893,1747890638443,-165.5,0.00024725,2]
[361917895,1747890638453,-1000.0,0.000248,2]
[361917897,1747890638464,-500.0,0.00024873,2]
[361917899,1747890638473,-500.0,0.00024873,2]
[361917901,1747890638482,-640.84235729,0.00024873,2]
[361917903,1747890638492,-500.0,0.00024873,2]
[361917905,1747890638502,-500.0,0.00024873,2]
[361917907,1747890638513,-501.09475086,0.00024873,2]
[361917909,1747890638523,-500.77806271,0.00024873,2]
[361917911,1747890638533,-4816.671525,0.00024898,2]
[361917913,1747890638542,-2093.5517367,0.00024926,2]
[361917915,1747890638552,-41073.003229,0.00024943,2]
[361917917,1747890638562,-408.0334393,0.0002496,2]
[361917919,1747890638571,-164.93,0.00024977,2]
[361917921,1747890638581,-1000.0,0.00025,3]
[361917923,1747890638591,-6483.59320198,0.00025,2]
[361917925,1747890638600,-150.0,0.00025,3]
[361917927,1747890638610,-150.0,0.00025,3]
[361917929,1747890638620,-223.68380807,0.00025027,3]
[361917931,1747890638630,-150.0,0.00025027,3]
[361917933,1747890638640,-255.26409363,0.00025055,3]
[361917935,1747890638650,-152.01,0.000251,2]
[361917937,1747890638660,-9187.95,0.00025786,2]
[361917939,1747890638670,-150.99,0.00025786,2]
[361917941,1747890638680,-223.0,0.00025786,20]
[361917943,1747890638690,-1542.5,0.00025786,2]
[361917945,1747890638700,-262.85,0.00025786,2]
[361917947,1747890638709,-406.53,0.00025786,2]
[361917949,1747890638720,-150.99,0.00025786,2]
[361917951,1747890638730,-254.81,0.00025786,2]
[361917953,1747890638739,-411.6,0.00025786,2]
[361917955,1747890638749,-1089.32076296,0.00026027,2]
[361917957,1747890638758,-1010.1363631,0.00026027,2]
[361917959,1747890638767,-1142.5196735,0.00026027,2]
[361917961,1747890638779,-1613.12089006,0.00026027,2]
[361917963,1747890638789,-456.03,0.000264,7]
[361917965,1747890638799,-212.21483956,0.000264,15]
[361917967,1747890638808,-629.41,0.00026714,2]
[361917969,1747890638818,-1033.64741757,0.00026754,2]
[361917971,1747890638828,-1078.19558095,0.00026754,2]
[361917973,1747890638837,-1005.85753849,0.00026849,2]
[361917975,1747890638846,-1114.18806527,0.00026849,2]
[361917977,1747890638856,-1023.77308718,0.00026849,2]
[361917979,1747890638865,-1133.28097755,0.00026849,2]
[361917981,1747890638876,-1130.23178935,0.00026849,2]
[361917982,1747890638888,-1140.21620593,0.00026849,2]
[361917984,1747890638898,-1149.12242326,0.00026849,2]
[361917986,1747890638907,-1025.98209065,0.00026849,2]
[361917988,1747890638917,-1088.54029633,0.00026849,2]
[361917990,1747890638927,-1015.25339043,0.00026849,2]
[361917992,1747890638937,-1076.7280797,0.00026849,2]
[361917994,1747890638946,-1112.9291819,0.00026849,2]
[361917996,1747890638959,-1000.0,0.00027,6]
[361917998,1747890638971,-207.0,0.00027116,6]
[361918000,1747890638981,-1000.0,0.0002719,2]
[361918002,1747890638991,-1000.0,0.00027397,14]
[361918004,1747890639001,-1000.0,0.00027397,20]
[361918006,1747890639011,-150.0,0.00027397,2]
[361918008,1747890639020,-1537.8897762,0.00027397,14]
[361918010,1747890639030,-1000.0,0.00027398,14]
[361918012,1747890639040,-252.10539387,0.00027424,2]
[361918015,1747890639050,-6066.3510104,0.000275,7]
[361918017,1747890639060,-1000.0,0.0002755,14]
[361918018,1747890639069,-793.04,0.00027951,120]
[361918020,1747890639080,-1000.0,0.00028,7]
[361918022,1747890639089,-153.7,0.00028203,2]
[361918024,1747890639099,-458.34,0.00028219,2]
[361918026,1747890639109,-505.340375,0.00028657,120]
[361918029,1747890639120,-503.633952,0.00028657,120]
[361918030,1747890639130,-300.69,0.00028767,2]
[361918033,1747890639140,-629.41,0.00028977,2]
[361918034,1747890639150,-212.21483956,0.0002915,20]
[361918036,1747890639160,-458.34,0.00029178,2]
[361918039,1747890639171,-805.62,0.00029178,2]
[361918040,1747890639180,-2418.06023736,0.000293,2]
[361918041,1747890639190,-5000.0,0.000295,7]
[361918042,1747890639200,-431.93,0.00029589,2]
[361918043,1747890639213,-459.87,0.00029589,2]
[361918044,1747890639222,-172.37,0.00029589,2]
[361918045,1747890639236,-707.66,0.00029589,2]
[361918046,1747890639249,-162.8,0.00029589,2]
[361918047,1747890639262,-170.1,0.00029589,2]
[361918048,1747890639272,-170.1,0.00029589,2]
[361918049,1747890639281,-162.8,0.00029589,2]
[361918050,1747890639291,-162.8,0.00029589,2]
[361918052,1747890639300,-1000.0,0.000298,30]
[361918053,1747890639310,-500.0,0.00029973,5]
[361918056,1747890639320,-500.0,0.00029973,5]
[361918058,1747890639330,-196.77,0.0002999,2]
[361918060,1747890639339,-500.0,0.00029999,2]